fUSD/lending_fUSD_20240301
["ID","MTS","AMOUNT","RATE_DAILY","PERIOD"]
[316023040,1709327451532,-500.0,0.00022027,2]
[316023041,1709327451542,-7070.22,0.00022027,2]
[316023042,1709327451552,-500.0,0.00022027,2]
[316023043,1709327451564,-529.11,0.00022027,2]
[316023044,1709327451574,-5861.18,0.00022027,2]
[316023045,1709327451583,-500.0,0.00022027,2]
[316023046,1709327451593,-537.06,0.00022027,2]
[316023047,1709327451603,-33577.13,0.00022027,2]
[316023048,1709327451613,-500.0,0.00022027,2]
[316023049,1709327451624,-1668.82,0.00022027,2]
[316023050,1709327451637,-891.32,0.00022027,2]
[316023051,1709327451647,-500.0,0.00022027,2]
[316023052,1709327451657,-8901.44,0.00022027,2]
[316023053,1709327451668,-500.0,0.00022027,2]
[316023054,1709327451678,-2011.98,0.00022027,2]
[316023055,1709327451687,-3361.6,0.00022027,2]
[316023056,1709327451697,-500.0,0.00022027,2]
[316023057,1709327451713,-967.73,0.00022027,2]
[316023058,1709327451722,-1064.03,0.00022027,2]
[316023059,1709327451733,-500.0,0.00022027,2]
[316023060,1709327451743,-500.0,0.00022027,2]
[316023061,1709327451753,-320.0,0.00022027,2]
[316023062,1709327451763,-500.0,0.00022027,2]
[316023063,1709327451773,-638.84,0.00022027,2]
[316023064,1709327451784,-2149.2,0.00022027,2]
[316023065,1709327451794,-500.0,0.00022027,2]
[316023066,1709327451803,-2108.84,0.00022027,2]
[316023067,1709327451815,-6084.97,0.00022027,2]
[316023068,1709327451825,-500.0,0.00022027,2]
[316023069,1709327451834,-459.40538362,0.00022044,2]
[316023070,1709327451844,-1754.36828258,0.00022049,2]
[316023071,1709327451854,-420.0,0.00022066,2]
[316023072,1709327451864,-164.87,0.0002209,2]
[316023073,1709327451873,-155.0,0.00022098,2]
[316023074,1709327451884,-155.0,0.00022098,2]
[316023075,1709327451894,-339.87480405,0.00022098,2]
[316023076,1709327451904,-230.84148984,0.00022098,2]
[316023077,1709327451914,-2158.2476961,0.00022098,2]
[316023078,1709327451924,-155.0,0.00022098,2]
[316023079,1709327451935,-1412.71448902,0.00022098,2]
[316023080,1709327451945,-165.67937759,0.00022098,2]
[316023081,1709327451955,-337.15282917,0.00022098,2]
[316023082,1709327451965,-270.95480117,0.00022098,2]
[316023083,1709327451974,-1594.91785343,0.00022099,2]
[316023084,1709327451984,-168.47885928,0.00022099,2]
[316023085,1709327451994,-155.0,0.00022099,2]
[316023086,1709327452004,-20000.0,0.000221,2]
[316023087,1709327452014,-459.40538362,0.000221,2]
[316023088,1709327452023,-153.0,0.00022121,2]
[316023089,1709327452033,-324.21277241,0.00022135,2]
[316023090,1709327452043,-500.0,0.00022136,2]
[316023091,1709327452052,-624.44,0.00022136,2]
[316023092,1709327452065,-500.0,0.00022136,2]
[316023093,1709327452074,-508.2190333,0.00022136,2]
[316023094,1709327452084,-500.0,0.00022136,2]
[316023095,1709327452093,-500.0,0.00022136,2]
[316023096,1709327452103,-500.0,0.00022136,2]
[316023097,1709327452113,-500.0,0.00022136,2]
[316023098,1709327452122,-504.51283448,0.00022136,2]
[316023099,1709327452134,-500.0,0.00022136,2]
[316023100,1709327452143,-500.0,0.00022136,2]
[316023101,1709327452153,-500.0,0.00022136,2]
[316023102,1709327452162,-500.0,0.00022136,2]
[316023103,1709327452172,-290.07514742,0.00022136,2]
[316023104,1709327452181,-500.0,0.00022136,2]
[316023105,1709327452191,-500.0,0.00022136,2]
[316023106,1709327452200,-500.0,0.00022136,2]
[316023107,1709327452210,-500.0,0.00022136,2]
[316023108,1709327452219,-500.0,0.00022136,2]
[316023109,1709327452229,-500.0,0.00022136,2]
[316023110,1709327452239,-500.0,0.00022136,2]
[316023111,1709327452248,-572.56,0.00022136,2]
[316023112,1709327452258,-500.0,0.00022136,2]
[316023113,1709327452268,-500.0,0.00022136,2]
[316023114,1709327452277,-500.0,0.00022136,2]
[316023115,1709327452287,-500.0,0.00022136,2]
[316023116,1709327452297,-511.15459035,0.00022136,2]
[316023117,1709327452306,-500.0,0.00022136,2]
[316023118,1709327452317,-500.0,0.00022136,2]
[316023119,1709327452327,-500.0,0.00022136,2]
[316023120,1709327452336,-500.0,0.00022136,2]
[316023121,1709327452346,-154.29219364,0.00022136,2]
[316023122,1709327452355,-500.0,0.00022136,2]
[316023123,1709327452365,-500.0,0.00022136,2]
[316023124,1709327452375,-505.97978848,0.00022136,2]
[316023125,1709327452386,-500.0,0.00022136,2]
[316023126,1709327452395,-378.19110813,0.00022136,2]
[316023127,1709327452405,-500.0,0.00022136,2]
[316023128,1709327452416,-508.49652493,0.00022136,2]
[316023129,1709327452427,-508.03755104,0.00022136,2]
[316023130,1709327452436,-500.0,0.00022136,2]
[316023131,1709327452447,-508.12003053,0.00022136,2]
[316023132,1709327452457,-500.0,0.00022136,2]
[316023133,1709327452468,-559.48420582,0.00022136,2]
[316023134,1709327452478,-500.0,0.00022136,2]
[316023135,1709327452490,-500.0,0.00022136,2]
[316023136,1709327452501,-704.59,0.00022136,2]
[316023137,1709327452511,-500.0,0.00022136,2]
[316023138,1709327452522,-500.0,0.00022136,2]
[316023139,1709327452536,-500.0,0.00022136,2]
[316023140,1709327452548,-168.94454485,0.00022136,2]
[316023141,1709327452558,-505.84052831,0.00022136,2]
[316023142,1709327452570,-500.0,0.00022136,2]
[316023143,1709327452581,-500.0,0.00022136,2]
[316023144,1709327452592,-445.26624657,0.00022136,2]
[316023145,1709327452603,-500.0,0.00022136,2]
[316023146,1709327452614,-500.0,0.00022136,2]
[316023147,1709327452624,-500.0,0.00022136,2]
[316023148,1709327452634,-500.0,0.00022136,2]
[316023149,1709327452644,-500.0,0.00022136,2]
[316023150,1709327452655,-597.89,0.00022136,2]
[316023151,1709327452666,-500.0,0.00022136,2]
[316023152,1709327452677,-209.90660183,0.00022136,2]
[316023153,1709327452687,-500.0,0.00022136,2]
[316023154,1709327452698,-500.0,0.00022136,2]
[316023155,1709327452708,-500.0,0.00022136,2]
[316023156,1709327452719,-500.0,0.00022136,2]
[316023157,1709327452735,-500.0,0.00022136,2]
[316023158,1709327452746,-500.0,0.00022136,2]
[316023159,1709327452757,-500.0,0.00022136,2]
[316023160,1709327452769,-500.0,0.00022136,2]
[316023161,1709327452786,-500.0,0.00022136,2]
[316023162,1709327452800,-500.0,0.00022136,2]
[316023163,1709327452814,-500.0,0.00022136,2]
[316023164,1709327452831,-500.0,0.00022136,2]
[316023165,1709327452843,-500.0,0.00022136,2]
[316023166,1709327452855,-500.0,0.00022136,2]
[316023167,1709327452869,-500.0,0.00022136,2]
[316023168,1709327452881,-500.0,0.00022136,2]
[316023169,1709327452895,-500.0,0.00022136,2]
[316023170,1709327452907,-500.0,0.00022136,2]
[316023171,1709327452918,-500.0,0.00022136,2]
[316023172,1709327452929,-563.82,0.00022136,2]
[316023173,1709327452941,-500.0,0.00022136,2]
[316023174,1709327452952,-500.0,0.00022136,2]
[316023175,1709327452963,-500.0,0.00022136,2]
[316023176,1709327452975,-552.9,0.00022136,2]
[316023177,1709327452988,-500.0,0.00022136,2]
[316023178,1709327453002,-500.0,0.00022136,2]
[316023179,1709327453015,-500.0,0.00022136,2]
[316023180,1709327453033,-500.0,0.00022136,2]
[316023181,1709327453047,-500.0,0.00022136,2]
[316023182,1709327453061,-500.0,0.00022136,2]
[316023183,1709327453082,-500.0,0.00022136,2]
[316023184,1709327453097,-500.0,0.00022136,2]
[316023185,1709327453110,-500.0,0.00022136,2]
[316023186,1709327453123,-500.0,0.00022136,2]
[316023187,1709327453134,-500.0,0.00022136,2]
[316023188,1709327453147,-521.07,0.00022136,2]
[316023189,1709327453159,-500.0,0.00022136,2]
[316023190,1709327453170,-584.84,0.00022136,2]
[316023191,1709327453182,-500.0,0.00022136,2]
[316023192,1709327453193,-500.0,0.00022136,2]
[316023193,1709327453205,-521.19501827,0.00022136,2]
[316023194,1709327453216,-500.0,0.00022136,2]
[316023195,1709327453227,-500.0,0.00022136,2]
[316023196,1709327453239,-500.0,0.00022136,2]
[316023197,1709327453250,-790.06,0.00022136,2]
[316023198,1709327453261,-554.47,0.00022136,2]
[316023199,1709327453272,-500.0,0.00022136,2]
[316023200,1709327453283,-500.0,0.00022136,2]
[316023201,1709327453294,-500.0,0.00022136,2]
[316023202,1709327453305,-500.0,0.00022136,2]
[316023203,1709327453321,-500.0,0.00022136,2]
[316023204,1709327453332,-500.0,0.00022136,2]
[316023205,1709327453343,-500.0,0.00022136,2]
[316023206,1709327453354,-620.34,0.00022136,2]
[316023207,1709327453365,-500.0,0.00022136,2]
[316023208,1709327453376,-500.0,0.00022136,2]
[316023209,1709327453387,-500.0,0.00022136,2]
[316023210,1709327453397,-500.0,0.00022136,2]
[316023211,1709327453408,-945.1,0.00022136,2]
[316023212,1709327453418,-500.0,0.00022136,2]
[316023213,1709327453428,-500.0,0.00022136,2]
[316023214,1709327453439,-500.0,0.00022136,2]
[316023215,1709327453449,-500.0,0.00022136,2]
[316023216,1709327453459,-500.0,0.00022136,2]
[316023217,1709327453469,-500.0,0.00022136,2]
[316023218,1709327453479,-500.0,0.00022136,2]
[316023219,1709327453489,-500.0,0.00022136,2]
[316023220,1709327453500,-500.0,0.00022136,2]
[316023221,1709327453510,-500.0,0.00022136,2]
[316023222,1709327453520,-507.13,0.00022136,2]
[316023223,1709327453530,-158.40416077,0.00022136,2]
[316023224,1709327453540,-585.61,0.00022136,2]
[316023225,1709327453551,-500.0,0.00022136,2]
[316023226,1709327453561,-500.0,0.00022136,2]
[316023227,1709327453573,-500.0,0.00022136,2]
[316023228,1709327453583,-500.0,0.00022136,2]
[316023229,1709327453593,-500.0,0.00022136,2]
[316023230,1709327453603,-500.0,0.00022136,2]
[316023231,1709327453613,-500.0,0.00022136,2]
[316023232,1709327453623,-500.0,0.00022136,2]
[316023233,1709327453634,-511.36,0.00022136,2]
[316023234,1709327453645,-655.68,0.00022136,2]
[316023235,1709327453655,-500.0,0.00022136,2]
[316023236,1709327453666,-500.0,0.00022136,2]
[316023237,1709327453676,-500.0,0.00022136,2]
[316023238,1709327453689,-500.0,0.00022136,2]
[316023239,1709327453699,-500.0,0.00022136,2]
[316023240,1709327453716,-500.0,0.00022136,2]
[316023241,1709327453732,-500.0,0.00022136,2]
[316023242,1709327453746,-500.0,0.00022136,2]
[316023243,1709327453756,-558.41,0.00022136,2]
[316023244,1709327453766,-928.54,0.00022136,2]
[316023245,1709327453776,-549.82,0.00022136,2]
[316023246,1709327453786,-500.0,0.00022136,2]
[316023247,1709327453796,-506.22747095,0.00022136,2]
[316023248,1709327453806,-500.0,0.00022136,2]
[316023249,1709327453818,-500.0,0.00022136,2]
[316023250,1709327453828,-500.0,0.00022136,2]
[316023251,1709327453838,-500.0,0.00022136,2]
[316023252,1709327454083,-500.0,0.00022136,2]
[316023253,1709327454093,-500.0,0.00022136,2]
[316023254,1709327454102,-500.0,0.00022136,2]
[316023255,1709327454112,-500.0,0.00022136,2]
[316023256,1709327454122,-500.0,0.00022136,2]
[316023257,1709327454132,-537.75,0.00022136,2]
[316023258,1709327454141,-585.12,0.00022136,2]
[316023259,1709327454151,-740.69,0.00022136,2]
[316023260,1709327454161,-725.29,0.00022136,2]
[316023261,1709327454171,-500.0,0.00022136,2]
[316023262,1709327454180,-500.0,0.00022136,2]
[316023263,1709327454190,-500.0,0.00022136,2]
[316023264,1709327454199,-500.0,0.00022136,2]
[316023265,1709327454209,-500.0,0.00022136,2]
[316023266,1709327454220,-500.0,0.00022136,2]
[316023267,1709327454229,-500.0,0.00022136,2]
[316023268,1709327454240,-500.0,0.00022136,2]
[316023269,1709327454251,-202.52293158,0.00022136,2]
[316023270,1709327454261,-500.0,0.00022136,2]
[316023271,1709327454271,-500.0,0.00022136,2]
[316023272,1709327454281,-500.0,0.00022136,2]
[316023273,1709327454291,-500.0,0.00022136,2]
[316023274,1709327454301,-500.0,0.00022136,2]
[316023275,1709327454314,-500.0,0.00022136,2]
[316023276,1709327454324,-500.0,0.00022136,2]
[316023277,1709327454335,-567.26,0.00022136,2]
[316023278,1709327454345,-500.0,0.00022136,2]
[316023279,1709327454355,-1074.01,0.00022136,2]
[316023280,1709327454364,-500.0,0.00022136,2]
[316023281,1709327454374,-724.85,0.00022136,2]
[316023282,1709327454384,-500.0,0.00022136,2]
[316023283,1709327454393,-500.0,0.00022136,2]
[316023284,1709327454403,-500.0,0.00022136,2]
[316023285,1709327454412,-500.0,0.00022136,2]
[316023286,1709327454422,-500.0,0.00022136,2]
[316023287,1709327454432,-500.0,0.00022136,2]
[316023288,1709327454441,-500.0,0.00022136,2]
[316023289,1709327454451,-500.0,0.00022136,2]
[316023290,1709327454461,-500.0,0.00022136,2]
[316023291,1709327454470,-500.0,0.00022136,2]
[316023292,1709327454480,-500.0,0.00022136,2]
[316023293,1709327454491,-500.0,0.00022136,2]
[316023294,1709327454501,-500.0,0.00022136,2]
[316023295,1709327454512,-500.0,0.00022136,2]
[316023296,1709327454523,-500.0,0.00022136,2]
[316023297,1709327454533,-661.14,0.00022136,2]
[316023298,1709327454544,-500.0,0.00022136,2]
[316023299,1709327454554,-500.0,0.00022136,2]
[316023300,1709327454568,-677.52,0.00022136,2]
[316023301,1709327454578,-500.0,0.00022136,2]
[316023302,1709327454588,-500.0,0.00022136,2]
[316023303,1709327454597,-500.0,0.00022136,2]
[316023304,1709327454607,-500.0,0.00022136,2]
[316023305,1709327454617,-500.0,0.00022136,2]
[316023306,1709327454626,-500.0,0.00022136,2]
[316023307,1709327454635,-500.0,0.00022136,2]
[316023308,1709327454644,-500.0,0.00022136,2]
[316023309,1709327454654,-150.0,0.00022136,2]
[316023310,1709327454663,-500.0,0.00022136,2]
[316023311,1709327454673,-500.0,0.00022136,2]
[316023312,1709327454682,-886.35,0.00022136,2]
[316023313,1709327454692,-500.0,0.00022136,2]
[316023314,1709327454702,-500.0,0.00022136,2]
[316023315,1709327454714,-621.47,0.00022136,2]
[316023316,1709327454723,-500.0,0.00022136,2]
[316023317,1709327454733,-500.0,0.00022136,2]
[316023318,1709327454742,-500.0,0.00022136,2]
[316023319,1709327454754,-500.0,0.00022136,2]
[316023320,1709327454764,-500.0,0.00022136,2]
[316023321,1709327454772,-578.42682412,0.00022136,2]
[316023322,1709327454782,-500.0,0.00022136,2]
[316023323,1709327454791,-500.0,0.00022136,2]
[316023324,1709327454800,-626.28,0.00022136,2]
[316023325,1709327454809,-814.38,0.00022136,2]
[316023326,1709327454821,-500.0,0.00022136,2]
[316023327,1709327454830,-500.0,0.00022136,2]
[316023328,1709327454839,-500.0,0.00022136,2]
[316023329,1709327454848,-500.0,0.00022136,2]
[316023330,1709327454857,-500.0,0.00022136,2]
[316023331,1709327454866,-500.0,0.00022136,2]
[316023332,1709327454875,-783.23,0.00022136,2]
[316023333,1709327454885,-500.0,0.00022136,2]
[316023334,1709327454894,-500.0,0.00022136,2]
[316023335,1709327454903,-500.0,0.00022136,2]
[316023336,1709327454912,-500.0,0.00022136,2]
[316023337,1709327454922,-610.08,0.00022136,2]
[316023338,1709327454932,-500.0,0.00022136,2]
[316023339,1709327454942,-500.0,0.00022136,2]
[316023340,1709327454951,-500.0,0.00022136,2]
[316023341,1709327454961,-500.0,0.00022136,2]
[316023342,1709327454971,-500.0,0.00022136,2]
[316023343,1709327454981,-1032.68,0.00022136,2]
[316023344,1709327454990,-500.0,0.00022136,2]
[316023345,1709327454999,-500.0,0.00022136,2]
[316023346,1709327455009,-500.0,0.00022136,2]
[316023347,1709327455019,-500.0,0.00022136,2]
[316023348,1709327455028,-500.0,0.00022136,2]
[316023349,1709327455037,-979.52,0.00022136,2]
[316023350,1709327455047,-500.0,0.00022136,2]
[316023351,1709327455057,-206.12733506,0.00022136,2]
[316023352,1709327455070,-500.0,0.00022136,2]
[316023353,1709327455079,-500.0,0.00022136,2]
[316023354,1709327455088,-500.0,0.00022136,2]
[316023355,1709327455097,-595.94,0.00022136,2]
[316023356,1709327455106,-536.93525457,0.00022136,2]
[316023357,1709327455115,-500.0,0.00022136,2]
[316023358,1709327455124,-500.0,0.00022136,2]
[316023359,1709327455134,-500.0,0.00022136,2]
[316023360,1709327455143,-500.0,0.00022136,2]
[316023361,1709327455153,-516.87594697,0.00022136,2]
[316023362,1709327455162,-500.0,0.00022136,2]
[316023363,1709327455172,-500.0,0.00022136,2]
[316023364,1709327455181,-500.0,0.00022136,2]
[316023365,1709327455191,-500.0,0.00022136,2]
[316023366,1709327455201,-500.0,0.00022136,2]
[316023367,1709327455211,-500.0,0.00022136,2]
[316023368,1709327455221,-500.0,0.00022136,2]
[316023369,1709327455230,-694.02,0.00022136,2]
[316023370,1709327455239,-500.0,0.00022136,2]
[316023371,1709327455249,-730.54,0.00022136,2]
[316023372,1709327455259,-500.0,0.00022136,2]
[316023373,1709327455268,-500.0,0.00022136,2]
[316023374,1709327455277,-500.0,0.00022136,2]
[316023375,1709327455286,-500.0,0.00022136,2]
[316023376,1709327455296,-500.0,0.00022136,2]
[316023377,1709327455305,-1631.05,0.00022136,2]
[316023378,1709327455318,-500.0,0.00022136,2]
[316023379,1709327455326,-500.0,0.00022136,2]
[316023380,1709327455336,-500.0,0.00022136,2]
[316023381,1709327455345,-579.96,0.00022136,2]
[316023382,1709327455354,-500.0,0.00022136,2]
[316023383,1709327455363,-623.07,0.00022136,2]
[316023384,1709327455373,-635.47,0.00022136,2]
[316023385,1709327455382,-500.0,0.00022136,2]
[316023386,1709327455391,-570.22,0.00022136,2]
[316023387,1709327455400,-1967.89,0.00022136,2]
[316023388,1709327455410,-790.48,0.00022136,2]
[316023389,1709327455419,-500.0,0.00022136,2]
[316023390,1709327455428,-500.0,0.00022136,2]
[316023391,1709327455437,-500.0,0.00022136,2]
[316023392,1709327455446,-3840.77,0.00022136,2]
[316023393,1709327455456,-500.0,0.00022136,2]
[316023394,1709327455465,-500.0,0.00022136,2]
[316023395,1709327455474,-500.0,0.00022136,2]
[316023396,1709327455484,-1023.93,0.00022136,2]
[316023397,1709327455495,-709.22,0.00022136,2]
[316023398,1709327455504,-500.0,0.00022136,2]
[316023399,1709327455514,-500.0,0.00022136,2]
[316023400,1709327455524,-674.18,0.00022136,2]
[316023401,1709327455533,-500.0,0.00022136,2]
[316023402,1709327455542,-802.02,0.00022136,2]
[316023403,1709327455551,-758.5,0.00022136,2]
[316023404,1709327455561,-500.0,0.00022136,2]
[316023405,1709327455572,-500.0,0.00022136,2]
[316023406,1709327455582,-2460.18,0.00022136,2]
[316023407,1709327455591,-500.0,0.00022136,2]
[316023408,1709327455601,-500.0,0.00022136,2]
[316023409,1709327455610,-500.0,0.00022136,2]
[316023410,1709327455620,-500.0,0.00022136,2]
[316023411,1709327455630,-874.36,0.00022136,2]
[316023412,1709327455639,-5095.22,0.00022136,2]
[316023413,1709327455648,-619.7,0.00022136,2]
[316023414,1709327455658,-4543.29,0.00022136,2]
[316023415,1709327455668,-500.0,0.00022136,2]
[316023416,1709327455678,-500.0,0.00022136,2]
[316023417,1709327455687,-2791.17,0.00022136,2]
[316023418,1709327455697,-500.0,0.00022136,2]
[316023419,1709327455709,-500.0,0.00022136,2]
[316023420,1709327455718,-13075.41,0.00022136,2]
[316023421,1709327455728,-1086.33,0.00022136,2]
[316023422,1709327455739,-500.0,0.00022136,2]
[316023423,1709327455750,-697.61,0.00022136,2]
[316023424,1709327455759,-500.0,0.00022136,2]
[316023425,1709327455769,-2372.71,0.00022136,2]
[316023426,1709327455778,-531.57,0.00022136,2]
[316023427,1709327455787,-2238.29,0.00022136,2]
[316023428,1709327455797,-500.0,0.00022136,2]
[316023429,1709327455807,-3273.4,0.00022136,2]
[316023430,1709327455817,-500.0,0.00022136,2]
[316023431,1709327455826,-3863.53,0.00022136,2]
[316023432,1709327455836,-13361.28,0.00022136,2]
[316023433,1709327455845,-500.0,0.00022136,2]
[316023434,1709327455854,-1208.49,0.00022136,2]
[316023435,1709327455863,-500.0,0.00022136,2]
[316023436,1709327455872,-4739.16,0.00022136,2]
[316023437,1709327455881,-1157.09,0.00022136,2]
[316023438,1709327455890,-15192.43,0.00022136,2]
[316023439,1709327455899,-500.0,0.00022136,2]
[316023440,1709327455909,-1083.08,0.00022136,2]
[316023441,1709327455919,-846.42,0.00022136,2]
[316023442,1709327455928,-500.0,0.00022136,2]
[316023443,1709327455938,-500.0,0.00022136,2]
[316023444,1709327455947,-500.0,0.00022136,2]
[316023445,1709327455956,-500.0,0.00022136,2]
[316023446,1709327455965,-836.05,0.00022136,2]
[316023447,1709327455974,-500.0,0.00022136,2]
[316023448,1709327455983,-500.0,0.00022136,2]
[316023449,1709327455992,-3538.29,0.00022136,2]
[316023450,1709327456002,-1380.52,0.00022136,2]
[316023451,1709327456011,-1788.19,0.00022136,2]
[316023452,1709327456020,-570.9,0.00022136,2]
[316023453,1709327456030,-3365.09,0.00022136,2]
[316023454,1709327456039,-1080.69,0.00022136,2]
[316023455,1709327456048,-1084.53,0.00022136,2]
[316023456,1709327456056,-500.0,0.00022136,2]
[316023457,1709327456068,-902.73,0.00022136,2]
[316023458,1709327456076,-1536.91,0.00022136,2]
[316023459,1709327456086,-7184.22,0.00022136,2]
[316023460,1709327456095,-712.93,0.00022136,2]
[316023461,1709327456104,-500.0,0.00022136,2]
[316023462,1709327456113,-2694.61,0.00022136,2]
[316023463,1709327456122,-500.0,0.00022136,2]
[316023464,1709327456131,-500.0,0.00022136,2]
[316023465,1709327456140,-500.0,0.00022136,2]
[316023466,1709327456149,-527.47,0.00022136,2]
[316023467,1709327456158,-3160.24,0.00022136,2]
[316023468,1709327456168,-500.0,0.00022136,2]
[316023469,1709327456177,-500.0,0.00022136,2]
[316023470,1709327456186,-2910.19,0.00022136,2]
[316023471,1709327456195,-907.07,0.00022136,2]
[316023472,1709327456205,-1012.0,0.00022136,2]
[316023473,1709327456214,-1643.86,0.00022136,2]
[316023474,1709327456223,-500.0,0.00022136,2]
[316023475,1709327456232,-518.91,0.00022136,2]
[316023476,1709327456241,-2423.72,0.00022136,2]
[316023477,1709327456250,-500.0,0.00022136,2]
[316023478,1709327456260,-729.11,0.00022136,2]
[316023479,1709327456269,-500.0,0.00022136,2]
[316023480,1709327456278,-883.75,0.00022136,2]
[316023481,1709327456288,-509.83,0.00022136,2]
[316023482,1709327456297,-500.0,0.00022136,2]
[316023483,1709327456306,-1378.45,0.00022136,2]
[316023484,1709327456316,-589.53,0.00022136,2]
[316023485,1709327456326,-500.0,0.00022136,2]
[316023486,1709327456334,-500.0,0.00022136,2]
[316023487,1709327456344,-500.0,0.00022136,2]
[316023488,1709327456353,-424.96603069,0.00022136,2]
[316023489,1709327456362,-553.48,0.00022136,2]
[316023490,1709327456468,-500.0,0.00022136,2]
[316023491,1709327456478,-500.0,0.00022136,2]
[316023492,1709327456486,-735.21,0.00022136,2]
[316023493,1709327456496,-711.66,0.00022136,2]
[316023494,1709327456505,-500.0,0.00022136,2]
[316023495,1709327456515,-500.0,0.00022136,2]
[316023496,1709327456523,-697.75,0.00022136,2]
[316023497,1709327456533,-1628.97,0.00022136,2]
[316023498,1709327456542,-500.0,0.00022136,2]
[316023499,1709327456552,-500.0,0.00022136,2]
[316023500,1709327456562,-746.85,0.00022136,2]
[316023501,1709327456571,-500.0,0.00022136,2]
[316023502,1709327456580,-500.0,0.00022136,2]
[316023503,1709327456590,-500.0,0.00022136,2]
[316023504,1709327456599,-703.92,0.00022136,2]
[316023505,1709327456609,-518.9,0.00022136,2]
[316023506,1709327456618,-766.47,0.00022136,2]
[316023507,1709327456627,-583.31,0.00022136,2]
[316023508,1709327456637,-202.42095476,0.00022136,2]
[316023509,1709327456646,-500.0,0.00022136,2]
[316023510,1709327456656,-500.0,0.00022136,2]
[316023511,1709327456669,-500.0,0.00022136,2]
[316023512,1709327456678,-932.22,0.00022136,2]
[316023513,1709327456688,-500.0,0.00022136,2]
[316023514,1709327456697,-894.62,0.00022136,2]
[316023515,1709327456709,-1880.26,0.00022136,2]
[316023516,1709327456718,-500.0,0.00022136,2]
[316023517,1709327456728,-1015.13,0.00022136,2]
[316023518,1709327456738,-729.79,0.00022136,2]
[316023519,1709327456750,-500.0,0.00022136,2]
[316023520,1709327456759,-1414.53,0.00022136,2]
[316023521,1709327456769,-500.0,0.00022136,2]
[316023522,1709327456778,-914.2,0.00022136,2]
[316023523,1709327456788,-570.43,0.00022136,2]
[316023524,1709327456797,-629.7,0.00022136,2]
[316023525,1709327456807,-500.0,0.00022136,2]
[316023526,1709327456817,-2928.05,0.00022136,2]
[316023527,1709327456827,-1028.0,0.00022136,2]
[316023528,1709327456836,-582.48,0.00022136,2]
[316023529,1709327456845,-500.0,0.00022136,2]
[316023530,1709327456854,-626.77,0.00022136,2]
[316023531,1709327456863,-500.0,0.00022136,2]
[316023532,1709327456872,-552.37,0.00022136,2]
[316023533,1709327456882,-1008.5,0.00022136,2]
[316023534,1709327456891,-635.13,0.00022136,2]
[316023535,1709327456901,-3808.77,0.00022136,2]
[316023536,1709327456910,-1798.0,0.00022136,2]
[316023537,1709327456919,-500.0,0.00022136,2]
[316023538,1709327456929,-698.46,0.00022136,2]
[316023539,1709327456941,-500.0,0.00022136,2]